Cogmind - Beta 16 --- EXPLORER MODE // 2026.01.02 @ 10:30:27 Player: K.K.Y. Result: Destroyed by RU-DFC(R) with Subdweller Beam Cannon Performance ------------- Evolutions (0) 0 Regions Visited (3) 600 Robots Destroyed (43) 215 Value Destroyed (770) 770 Prototype IDs (13) 260 Alien Tech Used (0) 0 Bonus (-50) -50 TOTAL SCORE: 1795 Bonus ------- Friendly Fire -50 Cogmind --------- Core Integrity 0/250 Matter 289/300 Energy 100/100 System Corruption 0% Temperature Cool (9) Movement Core (450) Ox8 Location -10/Subcaves Parts ------- > --- POWER (1) -------- (None) > --- PROPULSION (2) --- (None) > --- UTILITY (3) ------ Large Storage Unit Makeshift Light Armor Plating > --- WEAPON (2) ------- Barrage Gun > --- INVENTORY (15) --- Ion Engine Ion Engine Heat Sink Weight Redist. System Experimental Sensor Array Improved Terrain Scanner Makeshift Light Armor Plating Medium Laser Makeshift Laser Makeshift Shrapnel Gun Light Cannon Battle Cannon Grenade Launcher Rocket Launcher Datajack Peak State ------------ > --- POWER ------------ Ion Engine > --- PROPULSION ------- Light Treads Light Treads > --- UTILITY ---------- Large Storage Unit Structural Scanner Experimental Sensor Array > --- WEAPON ----------- Medium Laser Medium Laser > --- INVENTORY -------- Ion Engine Ion Engine Weight Redist. System Core Shielding Salvaging Laser Beam Cannon Light Cannon Grenade Launcher Grenade Launcher Datajack Mining Laser [Rating: 17] Favorites ----------- Power Ion Engine Engine Ion Engine Propulsion Light Treads Treads Light Treads Utility Structural Scanner Device Structural Scanner Storage Large Storage Unit Protection Makeshift Light Armor Plating Weapon Medium Laser Energy Gun Medium Laser Energy Cannon Beam Cannon Ballistic Gun Barrage Gun Launcher Grenade Launcher Special Weapon Mining Laser Build | -11 -10 -10 -10 ------- Run | Yrd Mat Min Sub Slots Evolved 1 | . 1 . . Power . | . . . . Propulsion . | . . . . Utility 1 | . 1 . . Weapon . | . . . . Parts Attached 17 | 6 4 1 6 Power 2 | 1 . . 1 Engine 2 | 1 . . 1 Core . | . . . . Reactor . | . . . . Propulsion 3 | 2 1 . . Treads 3 | 2 1 . . Leg . | . . . . Wheel . | . . . . Hover . | . . . . Flight . | . . . . Utility 6 | 1 3 1 1 Device 3 | . 2 1 . Storage 2 | 1 1 . . Processor . | . . . . Hackware . | . . . . Protection 1 | . . . 1 Artifact . | . . . . Weapon 6 | 2 . . 4 Energy Gun 2 | 2 . . . Energy Cannon 1 | . . . 1 Ballistic Gun 1 | . . . 1 Ballistic Cannon . | . . . . Launcher 1 | . . . 1 Special Weapon 1 | . . . 1 Impact Weapon . | . . . . Slashing Weapon . | . . . . Piercing Weapon . | . . . . Special Melee Weapon . | . . . . Unidentified Prototypes 1 | . . 1 . Parts Lost 7 | . . . 7 Power 1 | . . . 1 Propulsion 2 | . . . 2 Utility 1 | . . . 1 Weapon 3 | . . . 3 Highest Loss Streak 3 | . . . 3 To Critical Strikes . | . . . . Average Backups 11 | . 8 13 14 Power 2 | . 1 2 2 Propulsion . | . . . . Utility 2 | . . 2 4 Weapon 6 | . 5 6 6 Tool/Special . | . . . . Unused Backups 16 | . 2 . 14 Power 2 | . . . 2 Propulsion 1 | . 1 . . Utility 4 | . . . 4 Weapon 8 | . 1 . 7 Tool/Special 1 | . . . 1 Average Slot Usage (%) 81 | . 79 100 73 Engine 9 | . 12 12 6 Treads 20 | . 25 25 12 Device 12 | . 5 25 12 Storage 12 | . 12 12 12 Protection 3 | . . . 9 Energy Gun 16 | . 24 25 3 Energy Cannon 1 | . . . 4 Ballistic Gun 2 | . . . 6 Special Weapon 1 | . . . 3 Peak Build Rating 17 | 6 10 17 17 Average Rating 11 | 4 7 16 12 On Entrance 8 | . 6 10 17 Avg Prop Armor Cover (%) . | . . . . Naked Turns . | . . . . Heaviest Build 34 | 19 30 31 34 Greatest Support 46 | 40 46 46 40 Greatest Overweight (x) 9 | . . . 9 Average Overweight (x) . | . . . 2 Largest Inventory Capacity 15 | 10 15 15 15 Average Capacity 13 | 8 10 15 15 Most Carried 15 | 5 11 15 15 Average Carried 11 | . 8 13 14 Final Capacity 15 | 10 15 15 15 Final Carried 15 | 1 10 15 15 Class Distribution -------------------- 100% | Hacker-Mutant Dominant Class ---------------- Hacker-Mutant | -10/Materials Hacker-Mutant | -10/Mines Hacker-Mutant | -10/Subcaves Resources | -11 -10 -10 -10 ----------- Run | Yrd Mat Min Sub Matter Collected 483 | 260 50 20 153 Remotely . | . . . . Salvage Created 1150 | 132 417 370 231 Parts 69 | 8 26 19 16 Haulers Intercepted 2 | . 2 . . Recyclers Shooed . | . . . . Parts Field Recycled . | . . . . Retrieved Matter . | . . . . Parts Self-Destructed . | . . . . Prevented . | . . . . Parts Restored . | . . . . Kills | -11 -10 -10 -10 ------- Run | Yrd Mat Min Sub Combat Hostiles Destroyed 22 | . 4 8 10 Guns 19 | . 3 8 8 Cannons 2 | . . . 2 Classes Destroyed 10 | 2 5 . 3 Worker 2 | . 2 . . Builder 6 | . 6 . . Tunneler 6 | 3 . 3 . Hauler 2 | . 2 . . Recycler 3 | 1 1 1 . Turret 2 | . . . 2 Swarmer 9 | . 2 4 3 Grunt 8 | . 2 4 2 Artisan 1 | . . . 1 Subdweller 5 | . . . 5 Best Kill Streak 5 | 4 3 2 5 Combat Bots Only 3 | . 2 2 3 Max Kills in Single Turn 2 | 1 2 1 1 Gunslinging 1 | . 1 . . Exploded . | . . . . Melee . | . . . . Uniques/NPCs Destroyed . | . . . . Combat | -11 -10 -10 -10 -------- Run | Yrd Mat Min Sub Hostile Shots Fired 190 | . 19 31 140 Missed 69 | . 7 12 50 Hits 121 | . 12 19 90 Projectile 121 | . 12 19 90 AOE 3 | . . . 3 Damage Taken 1090 | . 86 134 870 Core 250 | . 23 32 195 Absorbed by Shields . | . . . . Ignored by Resistances 654 | . 55 84 515 Core Remaining (%) 100 | 100 . . . Volleys Fired 150 | 6 40 28 76 Largest 2 | 2 2 2 2 Hottest 160 | 100 100 100 160 Shots Fired 252 | 12 78 56 106 Gun 200 | 12 78 56 54 Cannon 24 | . . . 24 Launcher 4 | . . . 4 Special 24 | . . . 24 Kinetic 21 | . . . 21 Thermal 227 | 12 78 56 81 Explosive 4 | . . . 4 Electromagnetic . | . . . . Robot Hit Streak 47 | 10 18 22 47 Robot Miss Streak 2 | . 2 1 1 Penetration Max . | . . . . Secondary Targets 2 | . 1 1 . Max Gunslinging Chain 1 | . 1 1 . Shots Hit Robots 195 | 10 65 48 72 Core Hits 72 | 5 22 19 26 Critical Kills 1 | . . . 1 Critical Parts Destroyed . | . . . . Critical Strikes 20 | 1 11 2 6 Burn 19 | 1 11 2 5 Destroy 1 | . . . 1 Melee Attacks . | . . . . Impact . | . . . . Slashing . | . . . . Piercing . | . . . . Sneak Attacks . | . . . . Combat Hostiles . | . . . . Follow-up Attacks . | . . . . Damage Inflicted 2615 | 125 817 572 1101 Guns 2211 | 125 817 572 697 Cannons 142 | . . . 142 Explosions 118 | . . . 118 Melee . | . . . . Ramming . | . . . . Kinetic 313 | . . . 313 Thermal 2184 | 125 817 572 670 Explosive 118 | . . . 118 Electromagnetic . | . . . . Impact . | . . . . Slashing . | . . . . Piercing . | . . . . Highest Corruption . | . . . . Average Corruption . | . . . . Corruption Purged . | . . . . Corruption Blocked . | . . . . Overload Shots . | . . . . Overflow Damage . | . . . . Projectiles . | . . . . Explosions . | . . . . Melee . | . . . . Knockbacks . | . . . . Impact . | . . . . Kinetic . | . . . . Secondary . | . . . . Self-Inflicted Damage . | . . . . Shots . | . . . . Rammed . | . . . . Targets Rammed . | . . . . Kicked . | . . . . Crushed . | . . . . Highest Temperature 309 | 99 248 309 26 Average Temperature 62 | 43 62 77 7 Received Heat Transfer 651 | . 48 96 507 Effects 4 | . 1 3 . Interference 4 | . 1 3 . Siege Activations . | . . . . Martial Activations . | . . . . Shielding Activations . | . . . . Robots Disrupted . | . . . . Combat Hostiles . | . . . . Robots Corrupted . | . . . . Combat Hostiles . | . . . . Parts Fried . | . . . . Impact Corruptions . | . . . . Robots Melted 1 | . 1 . . Combat Hostiles 1 | . 1 . . Parts Melted 28 | 1 14 9 4 Heat Transferred 7626 | 444 3219 1850 2113 Parts Sabotaged . | . . . . Parts Stolen . | . . . . Parts Stripped . | . . . . Power Chain Reactions . | . . . . Alert | -11 -10 -10 -10 ------- Run | Yrd Mat Min Sub Maximum Alert Level . | . . . . Low Security (%) 100 | 100 100 100 . Level 1 . | . . . . Level 2 . | . . . . Level 3 . | . . . . Level 4 . | . . . . Level 5 . | . . . . High Security . | . . . . Max Security . | . . . . Peak Influence 55 | 10 50 55 . Initial . | . . . . Average 3 | 2 2 6 . Influence Increases 594 | 20 159 235 180 Destroy 0b10 Robot/C 380 | . 80 160 140 Destroy 0b10 Robot/NC 95 | 20 55 20 . Destroy Leader 74 | . 24 40 10 Lose Combat Pursuer 45 | . . 15 30 Influence Decreases 594 | 20 159 235 180 Time Decay 574 | 20 159 235 160 Lost Part 20 | . . . 20 Squads Dispatched . | . . . . Investigation . | . . . . Extermination . | . . . . Reinforcement . | . . . . Assault . | . . . . Garrison . | . . . . Intercept . | . . . . Searches Triggered . | . . . . Construction Impeded . | . . . . Haulers Reinforced . | . . . . Active Scanning Responses . | . . . . Cargo Convoy Interrupts . | . . . . Stealth | -11 -10 -10 -10 --------- Run | Yrd Mat Min Sub Distress Signals . | . . . . Communications Jammed . | . . . . Distress Signals . | . . . . Times Spotted 32 | . 9 9 14 Peak Tracking Total 3 | . 3 2 3 Tactical Retreats 2 | . . 1 1 Traps | -11 -10 -10 -10 ------- Run | Yrd Mat Min Sub Traps Triggered 3 | . 2 . 1 Indirectly . | . . . . Trap Hack Attempts . | . . . . Triggered . | . . . . Disarmed . | . . . . Reprogrammed . | . . . . Reused . | . . . . Traps Extracted . | . . . . Installed . | . . . . Triggered . | . . . . Machines | -11 -10 -10 -10 ---------- Run | Yrd Mat Min Sub Machines Disabled 3 | . . . 3 Max in Single Turn 2 | . . . 2 Machines Repaired . | . . . . Machines Dismantled . | . . . . Machines Sabotaged . | . . . . Overloaded Fab Kills . | . . . . Hacking | -11 -10 -10 -10 --------- Run | Yrd Mat Min Sub Machines Accessed 2 | . 1 . 1 Terminals . | . . . . Fabricators . | . . . . Repair Stations . | . . . . Recycling Units 1 | . 1 . . Scanalyzers . | . . . . Garrison Access . | . . . . Total Hacks 2 | . 1 . 1 Successful 2 | . 1 . 1 Failed . | . . . . Catastrophic . | . . . . Database Lockouts . | . . . . Manual . | . . . . Terminals . | . . . . Fabricators . | . . . . Repair Stations . | . . . . Recycling Units 1 | . 1 . . Scanalyzers . | . . . . Garrison Access . | . . . . Terminal Hacks 1 | . . . 1 Proto ID Catalog 1 | . . . 1 Fabricator Hacks . | . . . . Repair Station Hacks . | . . . . Recycling Unit Hacks 1 | . 1 . . Retrieve Components 1 | . 1 . . Scanalyzer . | . . . . Garrison Access Hacks . | . . . . Unauthorized Hacks . | . . . . Terminals . | . . . . Fabricators . | . . . . Repair Stations . | . . . . Recycling Units . | . . . . Scanalyzers . | . . . . Garrison Access . | . . . . Data Cores Recovered . | . . . . Used . | . . . . Hacking Detections 1 | . 1 . . Full Trace Events . | . . . . Feedback Events . | . . . . Feedback Blocked . | . . . . Robot Schematics Acquired . | . . . . Robots Built . | . . . . Authchips . | . . . . Time . | . . . . Total Robot Build Rating . | . . . . Part Schematics Acquired . | . . . . Parts Built . | . . . . Authchips . | . . . . Time . | . . . . Total Part Build Rating . | . . . . Part Studies Acquired . | . . . . Parts Repaired . | . . . . Time . | . . . . Parts Recycled . | . . . . Recycled Matter . | . . . . Retrieved Matter . | . . . . Retrieved Components 9 | . 9 . . Parts Scanalyzed . | . . . . Part Schematics Acquired . | . . . . Parts Damaged . | . . . . Bothacking | -11 -10 -10 -10 ------------ Run | Yrd Mat Min Sub Used RIF Installer . | . . . . Robots Hacked . | . . . . Non-combat . | . . . . Combat . | . . . . Robot Hacks Applied . | . . . . Relay Couplers Released . | . . . . Fabnet Peak Effective % . | . . . . Robots Rewired . | . . . . Allies Hacked . | . . . . Hacks Repelled . | . . . . Allies | -11 -10 -10 -10 -------- Run | Yrd Mat Min Sub Total Allies . | . . . . Largest Group . | . . . . Highest-Rated Group . | . . . . Highest-Rated Ally . | . . . . Total Orders . | . . . . Ally Attacks . | . . . . Total Damage . | . . . . Kills . | . . . . Allies Corrupted . | . . . . Allies Melted . | . . . . Intel | -11 -10 -10 -10 ------- Run | Yrd Mat Min Sub Active Infowar (turns) 3480 | . 353 1205 1922 Sensors 1207 | . . 1082 125 Structural 3480 | . 353 1205 1922 Robot Analysis Total . | . . . . Derelict Logs Recovered 2 | . . 1 1 Drone Launches . | . . . . Drone Recoveries . | . . . . Exploration | -11 -10 -10 -10 ------------- Run | Yrd Mat Min Sub Turns Passed 5098 | 82 1887 1205 1924 Spaces Moved 2404 | 48 1034 684 638 Core 206 | 22 . . 184 Treads 2198 | 26 1034 684 454 Legs . | . . . . Wheels . | . . . . Hover . | . . . . Flight . | . . . . Fastest Speed 50 | 50 160 160 160 Average Speed 186 | 109 160 160 262 Slowest Speed 500 | 160 160 160 500 Overloaded Moves . | . . . . Propulsion Burnouts . | . . . . Robots Hopped . | . . . . Potential Cave-ins . | . . . . Cave-ins Triggered . | . . . . Exploration Rate (%) 59 | 4 96 96 42 Regions Visited 3 Branch Regions 2 Pre-discovered Areas 2 | . . 1 1 Known Exits Taken 3 | 1 1 1 . Unknown Exits Taken . | . . . . Scrap Searched 4 | . . . 4 Spaces Dug . | . . . . Terrain Destroyed 4 | . . . 4 Melee . | . . . . Projectile . | . . . . AOE 4 | . . . 4 Terrain Rammed . | . . . . Walls Destroyed . | . . . . Machines Disabled . | . . . . Actions | -11 -10 -10 -10 --------- Run | Yrd Mat Min Sub Total 2731 | 65 1190 739 737 Wait 123 | . 95 21 7 Move 2401 | 47 1033 683 638 Hop . | . . . . Pick Up 28 | 6 12 5 5 Fast Attach 4 | 1 3 . . Attach 10 | 5 1 1 3 Detach 2 | . . 1 1 Swap 6 | . 2 . 4 Drop 7 | . 4 . 3 Fire 150 | 6 40 28 76 Melee . | . . . . Ram . | . . . . Kick . | . . . . Crush . | . . . . Escape Stasis . | . . . . Rewire . | . . . . Trap . | . . . . Miscellaneous . | . . . . Route ------- -11/Scrapyard -10/Materials (discovered 5 exits: *Mat x3 / *Min / *Sub) -10/Mines (discovered 2 exits: *Mat / *Sub) -10/Subcaves (discovered 2 exits: *Mat / *Rec) History --------- Turn | Location | Event 13 | -11/Scrapyard | Identified exit to Materials 13 | -11/Scrapyard | Discovered exit to Materials (range 15) 83 | -11/Scrapyard | Entered Materials 83 | -10/Materials | Evolved 1 slot: Utility x1 84 | -10/Materials | Met a group of wandering Federalists 312 | -10/Materials | Build established: Hacker-Mutant 351 | -10/Materials | Identified exit to Mines 351 | -10/Materials | Discovered exit to Mines (range 8) 887 | -10/Materials | Identified exit to Materials 887 | -10/Materials | Discovered exit to Materials (range 4) 1212 | -10/Materials | Discovered exit to Materials (range 14) 1355 | -10/Materials | Identified exit to Subcaves 1355 | -10/Materials | Discovered exit to Subcaves (range 9) 1741 | -10/Materials | Discovered exit to Materials (range 16) 1970 | -10/Materials | Entered Mines 2070 | -10/Mines | Found a damaged Exp. Sensor Array with a note attached 2073 | -10/Mines | Found Prototype Device 2074 | -10/Mines | Identified Exp. Sensor Array 2075 | -10/Mines | Received a Rocket Launcher from a helpful Derelict 2139 | -10/Mines | Found a hidden stash of uninstalled traps 2200 | -10/Mines | Discovered exit to Materials (range 9) 2700 | -10/Mines | Learned location of Recycling (-9) 2782 | -10/Mines | Discovered exit to Subcaves (range 10) 3175 | -10/Mines | Entered Subcaves 3176 | -10/Subcaves | Approached by a straggling Scientist 3362 | -10/Subcaves | Shifting Twisted Machinery released Battle Cannon 3365 | -10/Subcaves | Shifting Twisted Machinery released Mak. Light Armor Plating 3382 | -10/Subcaves | Identified exit to Recycling 3382 | -10/Subcaves | Discovered exit to Recycling (range 11) 3562 | -10/Subcaves | Ambushed by angry Subdweller bent on revenge 3564 | -10/Subcaves | Core integrity fell below 50% 3641 | -10/Subcaves | Identified exit to Materials 3641 | -10/Subcaves | Discovered exit to Materials (range 8) 3806 | -10/Subcaves | Shifting Twisted Machinery released Piercing Trap 3808 | -10/Subcaves | Shifting Twisted Machinery released Battle Rifle 3825 | -10/Subcaves | Shifting Twisted Machinery released Mak. Light Armor Plating 3850 | -10/Subcaves | Learned location of Zion (-7) 3850 | -10/Subcaves | Met a Zionite searching for "candidates" 4032 | -10/Subcaves | Disturbed a concealed Subdweller 4183 | -10/Subcaves | Lost 3 parts (1p1n1w) 4382 | -10/Subcaves | Core integrity fell below 20% 4518 | -10/Subcaves | Visited 4L-MR0's lab 5099 | -10/Subcaves | Destroyed by RU-DFC(R) with Subdweller Beam Cannon Last Messages --------------- Arachnoskeleton Cargo Legs Tripod Weapons Platform Hoverbase Flightbrick Gun Armor Tower Shield Power Bank Rainbow Chip VL-GR5's Exoskeleton "Deathgrip" Powered Cannon 04545_ 4L-MR0 mumbles to no one in particular: "Damn Subs sneaking around stealing my stuff." 04556_ 4L-MR0 mumbles: "I'm surprised some of them are even willing to come in here given their fear of my usual visitors." 04575_ 4L-MR0 mumbles: "Who knows where that last prototype ended up, probably tossed aside somewhere as if it were useless junk..." 05097_ Structural Scanner destroyed. Map ----- +----------------------------------------------------+ | # ?????????????????????????????????????????? | | ?????????????????????????????????????????? | | ?????????????????????????????????????????? | | ### ???????????????????????????????????????????? | | ### ???????????????????????????????????????????? | | ### ???????????????????????????????????????? | | ???????????????????????????????????????? | | ???????????????????????????????????????? | | ## ?????????????????????????????????????????? | | # ###?????????????????????????????????????????? | | ## ###?????????????????????????????????????????? | | ### ##?????????????????????????????????????????? | | ########?????????????????????????????????????????? | | ##??###??????????????????????????????????????????? | | ##???????????????????????????????????????????????? | | ##???????????????????????????????????????????????? | | ##???????????????????????????????????????????????? | | ##???????????????????????????????????????????????? | | ##???????????????????????????????????????????????? | | ###??????????????????????????????????????????????? | | ##???????????????????########???????????????????? | | ##???????????????????"#######???????????????????? | | ###?#########????????? # ##???????????????????? | | ###?#########????????? ###???????????????????? | | #???##"][]&###??#### ## ####?????????????????? | | ????##%%##&###??########R@ <#####????????????????? | | ????#####&%!###### ### < ###??? #??????????? | | ????#### ######## ##??????????? | | ###### ## ### # ## ###### ### ##??????????? | | ###### " " #### ## ? ##??????????? | | #### ### ? ###???? #??????????? | | # # ## ? ## ?????????????????? | | ## ## # ? ??????????????????? | | #### # ##### ###?? ??????????????????? | | ############# #####??? ??????????????????? | | #?########## ## #####???? ?????????????????? | | ??????????######### ###?????? ???????????????? | | ??????????######### ##????? #### ???????????????? | | ??????????######### ######? #### ???????????????? | | ??????????######### ##### ##??????????????????? | | ??????????## ##??????????????????? | | ??????????### ##??????????????????? | | ??????####### ###??????????????????? | | ??????####### ## ####??????????????????? | | ??????## ## ## ##### ???????????????????? | | ??????## ## ### ????????????????????? | | ??????## ## ???????????????????????? | | ???###### ### ###### ?????????????????????? | | ############## ###### ????????????????????? | | ##### ####### ##???## ##?????????????????? | +----------------------------------------------------+ Best States ------------- Heat Dissipation 25 Energy Generation 10 Energy Capacity 250 Matter Stores 300 Matter Capacity 300 Sight Range 16 Robot Scan Range 20 Terrain Scan Density 10 Additional Mass Support 6 Armor Coverage 100 Resistance: KI 35 Resistance: TH 35 Resistance: EX 35 Resistance: EM 35 Resistance: I 35 Resistance: S 35 Resistance: P 35 Evasion (%) 50 Recoil Reduction 2 Offensive Hacking 20 Item Schematics ----------------- None Robot Schematics ------------------ None Fabricated ------------ Nothing Repaired ---------- Nothing Studied --------- None Alien Tech Used ----------------- None Achievements -------------- None Challenges ------------ None Game ------ Seed VariableInsulatedAirjet Manual? 0 Play Time 00:16:04 Cumulative 238.7 hours Start 2026.01.02 @ 10:14:56 End 2026.01.02 @ 10:30:27 Sessions 1 Manual Loads 0 Difficulty Explorer Special Mode None Game No. 380 Rogue 0 Adventurer 0 Explorer 380 Win Type - Total 0 Types 0/0/0/0/0/0/0/0/0/0 Lore% 71 Gallery% 68 Achievement% 54 Wizard Run 0 Options --------- Layout 1 ASCII 0 Keyboard 0 Movement Mouse Keybinds 0 Fullscreen 1 Font 24/Smallcaps Map View 50x35 Zoom Use 0% Tactical HUD 1 Map Filters NONE Filters NONE Steam 1 RUN: e3de9c79-8417-4292-994e-06afa73a2dc2